bitfinex-derivatives/quotes_BTCF0:USTF0_20240814
["timestamp","ask_amount","ask_price","bid_price","bid_amount"]
[1723666960978,0.2556463,59087.0,59086.0,0.234604]
[1723666962283,0.2556463,59087.0,59086.0,0.28489239]
[1723666962679,0.2556463,59087.0,59086.0,0.234604]
[1723666964881,0.084604,59086.0,59085.0,0.00025379]
[1723666965072,0.788504,59086.0,59085.0,0.00025379]
[1723666965272,1.30247821,59086.0,59085.0,0.00025379]
[1723666965482,1.24558367,59086.0,59085.0,0.00025379]
[1723666966177,1.24758367,59086.0,59085.0,0.00025379]
[1723666966377,1.33218767,59086.0,59085.0,0.00025379]
[1723666966979,1.47187832,59086.0,59085.0,0.00025379]
[1723666967782,1.47187888,59086.0,59085.0,0.00025379]
[1723666972486,1.16447888,59086.0,59085.0,0.00025379]
[1723666972683,1.13705309,59086.0,59085.0,0.00025379]
[1723666972986,1.25705309,59086.0,59085.0,0.00025379]
[1723666974588,1.28447888,59086.0,59085.0,0.00025379]
[1723666979692,1.64527888,59086.0,59085.0,0.00025379]
[1723666980781,1.6452808,59086.0,59085.0,0.00025379]
[1723666982888,1.74646428,59086.0,59085.0,0.00025379]
[1723666983684,1.74546428,59086.0,59085.0,0.00025379]
[1723666983883,1.02486428,59086.0,59085.0,0.00025379]
[1723666984093,1.74646428,59086.0,59085.0,0.00025379]
[1723666985185,1.66186028,59086.0,59085.0,0.00025379]
[1723666985383,1.5606768,59086.0,59085.0,0.00025379]
[1723666985586,1.3877768,59086.0,59085.0,0.00025379]
[1723666986388,1.2677768,59086.0,59085.0,0.00025379]
[1723666986784,1.0975768,59086.0,59085.0,0.00025379]
[1723666987695,0.7367768,59086.0,59085.0,0.00025379]
[1723666988991,0.73677496,59086.0,59085.0,0.00025379]
[1723666989294,0.92256244,59086.0,59085.0,0.00025379]
[1723666989697,0.83795846,59086.0,59085.0,0.00025379]
[1723666990495,0.83795845,59086.0,59085.0,0.00025379]
[1723666990893,0.69965844,59086.0,59085.0,0.08449799]
[1723666991196,0.72708399,59086.0,59085.0,0.08449799]
[1723666992284,0.72708399,59086.0,59085.0,0.16910299]
[1723666992688,0.72708399,59086.0,59085.0,0.08449799]
[1723666993391,0.727084,59086.0,59085.0,0.08449799]
[1723666994292,0.727084,59086.0,59085.0,0.08449698]
[1723666994594,0.727084,59086.0,59085.0,0.00025379]
[1723666994794,0.727084,59086.0,59085.0,0.08449698]
[1723666995501,1.96807453,59086.0,59085.0,0.00025379]
[1723666995791,2.13637453,59086.0,59085.0,0.00025379]
[1723666996391,2.05177053,59086.0,59085.0,0.00025379]
[1723666996695,1.14405053,59086.0,59085.0,0.00025379]
[1723666997282,0.97375053,59086.0,59085.0,0.00025379]
[1723666997488,0.97575053,59086.0,59085.0,0.00025379]
[1723666999492,0.86575053,59086.0,59085.0,0.00025379]
[1723667000597,0.97575053,59086.0,59085.0,0.00025379]
[1723667001391,0.86575053,59086.0,59085.0,0.00025379]
[1723667003987,0.98275053,59086.0,59085.0,0.00025379]
[1723667004287,0.844084,59086.0,59085.0,0.00025379]
[1723667005298,0.844084,59086.0,59085.0,0.08485879]
[1723667005699,0.844084,59086.0,59085.0,0.24485879]
[1723667006291,0.844084,59086.0,59085.0,0.16025379]
[1723667006702,0.84408421,59086.0,59085.0,0.16025379]
[1723667009392,0.84408421,59086.0,59085.0,0.00025379]
[1723667011300,0.84408409,59086.0,59085.0,0.00025379]
[1723667012002,0.48328409,59086.0,59085.0,0.00025379]
[1723667012201,0.84408409,59086.0,59085.0,0.00025379]
[1723667013390,0.84408406,59086.0,59085.0,0.00025379]
[1723667014596,0.48328406,59086.0,59085.0,0.00025379]
[1723667014803,0.84408406,59086.0,59085.0,0.00025379]
[1723667015395,0.84408406,59086.0,59085.0,0.08485879]
[1723667016301,0.84408406,59086.0,59085.0,0.00025379]
[1723667016703,1.16868406,59086.0,59085.0,0.00025379]
[1723667018006,1.27016579,59086.0,59085.0,0.00025379]
[1723667018305,1.27016579,59086.0,59085.0,0.08449727]
[1723667018701,1.27016582,59086.0,59085.0,0.16910227]
[1723667019703,1.11326582,59086.0,59085.0,0.16910227]
[1723667020703,0.94556582,59086.0,59085.0,0.16910227]
[1723667021212,0.94556582,59086.0,59085.0,0.08449727]
[1723667021509,0.94556401,59086.0,59085.0,0.08449727]
[1723667024008,0.94556401,59086.0,59085.0,0.16910227]
[1723667025404,0.94556401,59086.0,59085.0,0.16910201]
[1723667026410,0.84408409,59086.0,59085.0,0.08485879]
[1723667027401,0.84408409,59086.0,59085.0,0.16910201]
[1723667029308,0.84408401,59086.0,59085.0,0.08485879]
[1723667029620,0.84408401,59086.0,59085.0,0.16910201]
[1723667030510,0.84408401,59086.0,59085.0,0.17924936]
[1723667031412,0.84408401,59086.0,59085.0,0.09500614]
[1723667032517,0.84408401,59086.0,59085.0,0.08485879]
[1723667033017,0.89849506,59086.0,59085.0,0.08485879]
[1723667033415,0.84408401,59086.0,59085.0,0.08485879]
[1723667033616,0.89849964,59086.0,59085.0,0.08485879]
[1723667034515,0.89849964,59086.0,59085.0,0.16910203]
[1723667034516,0.84408401,59086.0,59085.0,0.16910203]
[1723667034914,0.89850268,59086.0,59085.0,0.08485879]
[1723667036409,0.89850268,59086.0,59085.0,0.00025379]
[1723667038417,0.89842517,59086.0,59085.0,0.00025379]
[1723667039021,0.98302917,59086.0,59085.0,0.00025379]
[1723667041515,0.87099931,59086.0,59085.0,0.00025379]
[1723667041717,0.69689778,59086.0,59085.0,0.08485879]
[1723667041913,0.47929646,59090.0,59085.0,0.08485879]
[1723667041914,0.11875025,59096.0,59090.0,0.169196]
[1723667042119,0.08460829,59092.0,59091.0,0.084597]
[1723667042337,0.10180353,59096.0,59091.0,2.15947988]
[1723667042338,0.00025379,59096.0,59091.0,2.15947988]
[1723667042622,0.25367819,59095.0,59094.0,0.646984]
[1723667042828,0.00025379,59096.0,59095.0,0.169182]
[1723667043014,0.00036074,59096.0,59095.0,0.31619146]
[1723667043213,0.00036074,59096.0,59095.0,0.31748414]
[1723667043412,0.00036074,59096.0,59095.0,0.26708068]
[1723667044215,0.00036074,59096.0,59095.0,0.18283767]
[1723667044615,0.00036074,59096.0,59095.0,0.2670506]
[1723667045018,0.00036074,59096.0,59095.0,0.2680506]
[1723667045916,0.00036074,59096.0,59095.0,0.18383767]
[1723667046115,0.00036074,59096.0,59095.0,0.26805122]
[1723667049714,0.00036074,59096.0,59095.0,0.26804882]
[1723667051925,0.00036074,59096.0,59095.0,0.40804882]
[1723667053222,0.00036074,59096.0,59095.0,0.225591]
[1723667053428,0.00036074,59096.0,59095.0,0.40804669]
[1723667053624,0.00036074,59096.0,59095.0,0.30980132]
[1723667053832,0.00036074,59096.0,59095.0,0.4080471]
[1723667055437,0.00036074,59096.0,59095.0,0.32383678]
[1723667056831,0.00036074,59096.0,59095.0,0.32383852]
[1723667058138,0.00036074,59096.0,59095.0,0.83147852]
[1723667058330,0.00036074,59096.0,59095.0,1.31606952]
[1723667058728,0.00036074,59096.0,59095.0,1.40066052]
[1723667058933,0.00036074,59096.0,59095.0,1.31606952]
[1723667059840,0.00036074,59096.0,59095.0,1.40066052]
[1723667060438,0.00336074,59096.0,59095.0,1.40066052]
[1723667061342,0.00036074,59096.0,59095.0,1.40066052]
[1723667061536,0.00036074,59096.0,59095.0,1.40166052]
[1723667062334,0.00036074,59096.0,59095.0,1.40466052]
[1723667063042,0.00036074,59096.0,59095.0,1.76546052]
[1723667064127,0.00036074,59096.0,59095.0,1.7654509]
[1723667064537,0.00036074,59096.0,59095.0,1.667213]
[1723667064735,0.00036074,59096.0,59095.0,1.7654509]
[1723667065142,0.00036074,59096.0,59095.0,1.6808599]
[1723667065336,0.00036074,59096.0,59095.0,1.3654509]
[1723667065527,0.00036074,59096.0,59095.0,1.7654509]
[1723667065832,0.00981047,59107.0,59106.0,0.16915]
[1723667066034,0.42314974,59120.0,59114.0,0.084564]
[1723667066035,0.05067009,59115.0,59114.0,0.084564]
[1723667066230,0.1665,59120.0,59116.0,0.117]
[1723667066231,0.05067009,59119.0,59116.0,0.117]
[1723667066433,0.1665,59120.0,59119.0,0.084557]
[1723667066637,0.2665,59120.0,59119.0,0.371557]
[1723667066836,0.52153013,59120.0,59119.0,0.371557]
[1723667067541,0.57220022,59120.0,59119.0,0.254557]
[1723667067741,0.68905534,59120.0,59119.0,0.254557]
[1723667068439,0.63853013,59120.0,59119.0,0.254557]
[1723667068640,0.63953013,59120.0,59119.0,0.259557]
[1723667068941,0.69006636,59120.0,59119.0,0.259557]
[1723667069341,0.63953013,59120.0,59119.0,0.259557]
[1723667069644,0.64053013,59120.0,59119.0,0.266557]
[1723667070334,0.69108421,59120.0,59119.0,0.266557]
[1723667070535,0.64053013,59120.0,59119.0,0.266557]
[1723667071538,0.6910686,59120.0,59119.0,0.266557]
[1723667071843,0.64053013,59120.0,59119.0,0.266557]
[1723667072030,0.70821376,59120.0,59119.0,0.266557]
[1723667073142,0.64053013,59120.0,59119.0,0.266557]
[1723667073647,1.54797013,59120.0,59114.0,0.00025379]
[1723667073845,0.084569,59111.0,59107.0,0.084573]
[1723667074142,0.084572,59108.0,59107.0,0.084573]
[1723667074339,0.117,59109.0,59108.0,0.084572]
[1723667074546,0.084574,59107.0,59100.0,0.117]
[1723667074749,0.117,59105.0,59100.0,0.12682331]
[1723667074941,0.117,59105.0,59100.0,0.27682331]
[1723667075349,0.117,59105.0,59104.0,0.084578]
[1723667075548,0.117,59105.0,59104.0,0.234578]
[1723667075847,0.05056958,59106.0,59105.0,0.084577]
[1723667076051,0.05056958,59106.0,59105.0,0.254577]
[1723667076241,0.30491642,59106.0,59105.0,0.254577]
[1723667076750,0.25434684,59106.0,59105.0,0.254577]
[1723667076938,0.30491642,59106.0,59105.0,0.254577]
[1723667077137,0.05056958,59106.0,59105.0,0.254577]
[1723667077342,0.05156958,59106.0,59105.0,0.254577]
[1723667077552,0.25466737,59106.0,59105.0,0.254577]
[1723667077741,0.30524336,59106.0,59105.0,0.254577]
[1723667077946,0.25366737,59106.0,59105.0,0.254577]
[1723667078146,0.25466737,59106.0,59105.0,0.254577]
[1723667078348,0.001,59106.0,59105.0,0.254577]
[1723667078545,0.002,59106.0,59105.0,0.254577]
[1723667078746,0.2548706,59106.0,59105.0,0.35281399]
[1723667078946,0.2548706,59106.0,59105.0,0.35281446]
[1723667079139,0.30544851,59106.0,59105.0,0.35281446]
[1723667079342,0.2548706,59106.0,59105.0,0.35281446]
[1723667080149,0.2548706,59106.0,59105.0,0.35681446]
[1723667081351,0.2538706,59106.0,59105.0,0.35681446]
[1723667081552,0.2548706,59106.0,59105.0,0.35881446]
[1723667082345,0.2548706,59106.0,59105.0,0.4430204]
[1723667082541,0.2548706,59106.0,59105.0,0.260577]
[1723667082745,0.2548706,59106.0,59105.0,0.44402241]
[1723667084254,0.2538706,59106.0,59105.0,0.43902241]
[1723667084446,0.2548706,59106.0,59105.0,0.44402241]
[1723667085247,0.2548706,59106.0,59105.0,0.44502241]
[1723667085659,0.2548706,59106.0,59105.0,0.44502144]
[1723667086254,0.2548706,59106.0,59105.0,0.3467816]
[1723667086453,0.2538706,59106.0,59105.0,0.44002006]
[1723667086648,0.2548706,59106.0,59105.0,0.44502006]
[1723667087358,0.2548706,59106.0,59105.0,0.36081557]
[1723667088555,0.2548706,59106.0,59105.0,0.44502025]
[1723667089256,0.2548706,59106.0,59105.0,0.44202025]
[1723667089450,0.2548706,59106.0,59105.0,0.44502025]
[1723667089451,0.2538706,59106.0,59105.0,0.44502025]
[1723667089654,0.2528706,59106.0,59105.0,0.44002025]
[1723667089851,0.2538706,59106.0,59105.0,0.44202025]
[1723667090060,0.002,59106.0,59105.0,0.44502025]
[1723667090459,0.25709916,59106.0,59105.0,0.44501882]
[1723667091056,0.25709916,59106.0,59105.0,0.27501882]
[1723667091452,0.30672639,59106.0,59105.0,0.41201882]
[1723667091653,0.30772639,59106.0,59105.0,0.41501882]
[1723667091951,0.25709916,59106.0,59105.0,0.41501882]
[1723667093452,0.30772639,59106.0,59105.0,0.41501882]
[1723667093652,0.30772639,59106.0,59105.0,0.31678025]
[1723667093854,0.30772639,59106.0,59105.0,0.41501398]
[1723667095358,0.25709916,59106.0,59105.0,0.41501398]
[1723667095661,0.30772639,59106.0,59105.0,0.41501398]
[1723667095860,0.30772639,59106.0,59105.0,0.53191398]
[1723667097457,0.25709916,59106.0,59105.0,0.5319137]
[1723667097657,0.25709916,59106.0,59105.0,0.7074137]
[1723667097858,0.25709916,59106.0,59105.0,0.60918025]
[1723667098065,0.25709916,59106.0,59105.0,0.70741371]
[1723667099468,0.25709916,59106.0,59105.0,0.75773047]
[1723667099762,0.32452466,59106.0,59105.0,0.70741371]
[1723667100063,0.25709916,59106.0,59105.0,0.70741371]
[1723667100460,0.32452466,59106.0,59105.0,0.70741371]
[1723667100670,0.32452466,59106.0,59105.0,0.62321046]
[1723667101566,0.25709916,59106.0,59105.0,0.50631046]
[1723667101752,0.25709916,59106.0,59105.0,0.4922801]
[1723667101956,0.25709916,59106.0,59105.0,0.408077]
[1723667102356,0.25709916,59106.0,59105.0,0.45839376]
[1723667102559,0.25709916,59106.0,59105.0,0.64083383]
[1723667102764,0.25709916,59106.0,59105.0,0.45839376]
[1723667103357,0.25709916,59106.0,59105.0,0.54259687]
[1723667103558,0.25709916,59106.0,59105.0,0.49228011]
[1723667103758,0.45366186,59106.0,59105.0,0.28273047]
[1723667103958,0.64335829,59106.0,59105.0,0.33044008]
[1723667104161,0.54188686,59106.0,59105.0,0.33044008]
[1723667104354,0.64333031,59106.0,59105.0,0.33044008]
[1723667104558,0.72790531,59106.0,59105.0,0.24623697]
[1723667104761,0.62646186,59106.0,59105.0,0.24623697]
[1723667104960,0.84480383,59106.0,59105.0,0.24623697]
[1723667106066,0.74336186,59106.0,59105.0,0.24623697]
[1723667107069,0.74336186,59106.0,59105.0,0.24624588]
[1723667107364,0.48598686,59106.0,59105.0,0.24624588]
[1723667107680,0.48598786,59106.0,59105.0,0.24624588]
[1723667108173,0.48598785,59106.0,59105.0,0.33082288]
[1723667109667,0.84678785,59106.0,59105.0,0.33082288]
[1723667109969,0.84678832,59106.0,59105.0,0.33082288]
[1723667110671,0.84678832,59106.0,59105.0,0.33082007]
[1723667111066,0.84678832,59106.0,59105.0,0.33081987]
[1723667111271,0.81937416,59106.0,59105.0,0.33081987]
[1723667111871,0.54305638,59106.0,59105.0,0.33081987]
[1723667113775,0.45857416,59106.0,59105.0,0.33081987]
[1723667114367,0.48598853,59106.0,59105.0,0.232577]
[1723667114570,0.48598853,59106.0,59105.0,0.33081992]
[1723667115572,0.45857416,59106.0,59105.0,0.33081992]
[1723667116281,0.5430566,59106.0,59105.0,0.41502893]
[1723667116675,0.45857416,59106.0,59105.0,0.24624292]
[1723667116875,0.45857416,59106.0,59105.0,0.33045178]
[1723667118182,0.45857416,59106.0,59105.0,0.33082068]
[1723667118374,0.45857416,59106.0,59105.0,0.41502954]
[1723667118674,0.48598861,59106.0,59105.0,0.41502954]
[1723667120373,1.27269861,59106.0,59105.0,0.19045254]
[1723667120579,0.16917,59099.0,59098.0,0.00025379]
[1723667120776,0.76877257,59099.0,59098.0,0.00025379]
[1723667121074,0.92170922,59099.0,59098.0,0.00025379]
[1723667121379,0.97452664,59099.0,59098.0,0.00025379]
[1723667121574,0.92270922,59099.0,59098.0,0.00525379]
[1723667122383,0.92270922,59099.0,59098.0,0.00325379]
[1723667122694,0.92370922,59099.0,59098.0,0.00825379]
[1723667123180,0.16919,59092.0,59085.0,0.05052736]
[1723667123488,1.08451602,59092.0,59091.0,0.04749298]
[1723667123777,1.93522238,59092.0,59091.0,0.04749298]
[1723667124382,0.169204,59087.0,59086.0,0.00025379]
[1723667124678,0.98439224,59087.0,59086.0,0.00025379]
[1723667124983,1.59211224,59087.0,59086.0,0.00025379]
[1723667125485,1.50776526,59087.0,59086.0,0.00025379]
[1723667125872,1.50976526,59087.0,59086.0,0.00125379]
[1723667128480,1.59436726,59087.0,59086.0,0.00125379]
[1723667128784,0.084621,59074.0,59073.0,0.247522]
[1723667129083,0.45600398,59074.0,59073.0,0.387522]
[1723667129283,0.33910398,59074.0,59073.0,0.48581136]
[1723667129690,0.45600398,59074.0,59073.0,0.48581136]
[1723667131183,0.45700398,59074.0,59073.0,0.48581136]
[1723667131788,0.45700398,59074.0,59073.0,0.387522]
[1723667132291,0.45800398,59074.0,59073.0,0.387522]
[1723667132892,0.45800398,59074.0,59073.0,0.3029]
[1723667133286,0.45800398,59074.0,59073.0,0.40118953]
[1723667133687,0.45800398,59074.0,59073.0,0.3029]
[1723667134586,0.46817964,59074.0,59073.0,0.3029]
[1723667134995,0.46817964,59074.0,59073.0,0.1629]
[1723667135692,0.35127964,59074.0,59073.0,0.1629]
[1723667135993,0.45800398,59074.0,59073.0,0.1629]
[1723667137182,0.45800398,59074.0,59073.0,0.247522]
[1723667138596,0.25648298,59074.0,59073.0,0.534422]
[1723667139797,0.25648298,59074.0,59073.0,0.63270422]
[1723667140099,0.25648298,59074.0,59073.0,0.99350422]
[1723667142298,0.3608,59085.0,59073.0,0.99350422]
[1723667142299,0.05053231,59088.0,59078.0,0.084615]
[1723667142493,0.1169,59090.0,59087.0,0.1169]
[1723667142695,0.1169,59090.0,59088.0,0.1783]
[1723667142900,0.1169,59090.0,59088.0,0.3283]
[1723667142901,0.37008075,59090.0,59088.0,0.3283]
[1723667143992,0.37108075,59090.0,59088.0,0.3283]
[1723667144188,0.37108075,59090.0,59089.0,0.084599]
[1723667144494,0.37008075,59090.0,59089.0,0.244599]
[1723667144694,0.25418075,59090.0,59089.0,0.361499]
[1723667144886,0.25418075,59090.0,59089.0,1.230019]
[1723667145092,0.00025379,59095.0,59094.0,0.084592]
[1723667145305,0.00025379,59095.0,59094.0,0.722292]
[1723667145794,0.11715379,59095.0,59094.0,0.605392]
[1723667147505,0.12015379,59095.0,59094.0,0.605392]
[1723667147688,0.12115379,59095.0,59094.0,0.605392]
[1723667148400,0.12115379,59095.0,59094.0,0.244592]
[1723667151104,0.1716861,59095.0,59094.0,0.244592]
[1723667151406,0.18185061,59095.0,59094.0,0.34284709]
[1723667152497,0.2113183,59095.0,59094.0,0.34284709]
[1723667154211,0.20115379,59095.0,59094.0,0.34284709]
[1723667154699,0.20115379,59095.0,59094.0,0.244592]
[1723667154904,0.20115379,59095.0,59094.0,0.34284697]
[1723667155101,0.20115379,59095.0,59094.0,0.244592]
[1723667155307,0.20115379,59095.0,59094.0,0.34284697]
[1723667155801,0.24115379,59095.0,59094.0,0.33284697]
[1723667157397,0.24115379,59095.0,59094.0,0.234592]
[1723667157598,0.24115379,59095.0,59094.0,0.33284697]
[1723667159305,0.12115379,59095.0,59094.0,0.18284697]
[1723667159499,0.23115379,59095.0,59094.0,0.33284697]
[1723667160509,0.31574479,59095.0,59094.0,0.09825497]
[1723667160701,0.48654479,59095.0,59094.0,0.09825497]
[1723667161099,0.40195379,59095.0,59091.0,0.445395]
[1723667161397,0.1169,59092.0,59091.0,0.605395]
[1723667161601,0.1169,59092.0,59091.0,0.70365166]
[1723667161806,0.201495,59092.0,59091.0,0.61905666]
[1723667162108,0.45694589,59092.0,59091.0,0.61905666]
[1723667162610,0.45694589,59092.0,59091.0,0.25825666]
[1723667165419,0.45694589,59092.0,59091.0,0.25825668]
[1723667165823,0.45694589,59092.0,59091.0,0.16]
[1723667166508,0.5074782,59092.0,59091.0,0.16]
[1723667167308,0.50753348,59092.0,59091.0,0.16]
[1723667167509,0.45694589,59092.0,59091.0,0.16]
[1723667168418,0.52432231,59092.0,59091.0,0.16]
[1723667168616,0.52432231,59092.0,59091.0,0.25826138]
[1723667170516,0.45694589,59092.0,59091.0,0.25826138]
[1723667171521,0.45694589,59092.0,59091.0,0.30878874]
[1723667171725,0.45694589,59092.0,59091.0,0.21052736]
[1723667171914,0.45694589,59092.0,59091.0,0.30878764]
[1723667173514,0.54129287,59092.0,59091.0,0.25826028]
[1723667176109,0.54129287,59092.0,59091.0,0.25826048]
[1723667176420,0.54129287,59092.0,59091.0,0.30885145]
[1723667178619,0.54129287,59092.0,59091.0,0.25826048]
[1723667179212,0.54151275,59092.0,59091.0,0.30885091]
[1723667179414,0.54151133,59092.0,59091.0,0.30885091]
[1723667179634,0.54151191,59092.0,59091.0,0.30885229]
[1723667181922,0.54151191,59092.0,59091.0,0.25826188]
[1723667182523,0.48436551,59092.0,59091.0,0.25826188]
[1723667182924,0.45694589,59092.0,59091.0,0.25826188]
[1723667184817,0.45694589,59092.0,59091.0,0.34285888]
[1723667186529,0.48436535,59092.0,59091.0,0.34285888]
[1723667187432,0.45694589,59092.0,59091.0,0.34285888]
[1723667187732,0.48436535,59092.0,59091.0,0.25826188]
[1723667188126,0.59436535,59092.0,59089.0,0.05059515]
[1723667188327,0.10149417,59090.0,59087.0,0.084601]
[1723667188533,0.37901263,59089.0,59088.0,0.09827015]
[1723667188730,0.37901263,59089.0,59087.0,0.084601]
[1723667188731,0.084601,59088.0,59087.0,0.084601]
[1723667189034,0.48258628,59088.0,59087.0,0.084601]
[1723667189231,0.48258628,59088.0,59087.0,0.234601]
[1723667190238,0.48358628,59088.0,59087.0,0.234601]
[1723667190537,0.84438628,59088.0,59087.0,0.234601]
[1723667191425,0.81696682,59088.0,59087.0,0.234601]
[1723667191631,0.54069283,59088.0,59087.0,0.234601]
[1723667191835,0.45716682,59088.0,59087.0,0.234601]
[1723667192337,0.46690967,59088.0,59087.0,0.234601]
[1723667196434,0.45716682,59088.0,59087.0,0.234601]
[1723667198240,0.02714071,59088.0,59087.0,1.83982015]
[1723667198436,0.02714071,59088.0,59087.0,1.5678313]
[1723667198636,0.02714071,59088.0,59087.0,1.79245441]
[1723667198840,0.02714071,59088.0,59087.0,1.67555441]
[1723667199032,0.07784669,59088.0,59087.0,1.79245441]
[1723667199335,0.07784669,59088.0,59087.0,1.79260282]
[1723667199835,0.07784669,59088.0,59087.0,1.89086008]
[1723667200141,0.07784669,59088.0,59087.0,1.8235128]
[1723667200441,0.07784669,59088.0,59087.0,1.89086791]
[1723667200827,0.05270598,59088.0,59087.0,2.3081148]
[1723667201034,0.05270598,59088.0,59087.0,2.39208438]
[1723667201035,0.002,59088.0,59087.0,2.39208438]
[1723667201235,0.002,59088.0,59087.0,2.24277195]
[1723667201442,0.002,59088.0,59087.0,2.50595125]
[1723667201631,0.002,59088.0,59087.0,2.50595015]
[1723667201831,0.002,59088.0,59087.0,2.50594855]
[1723667202435,0.002,59088.0,59087.0,2.39204138]
[1723667202833,0.05095977,59095.0,59094.0,0.169184]
[1723667203040,0.05095977,59095.0,59094.0,1.27611289]
[1723667203230,0.00025379,59095.0,59094.0,2.18379289]
[1723667203429,0.00025379,59095.0,59094.0,2.11647497]
[1723667203630,0.04265977,59096.0,59095.0,0.169182]
[1723667203846,0.04265977,59096.0,59095.0,0.96489297]
[1723667204045,0.04265977,59096.0,59095.0,1.48084881]
[1723667204339,0.0676091,59100.0,59099.0,0.084585]
[1723667204545,0.0676091,59100.0,59099.0,0.32283815]
[1723667204943,0.0676091,59100.0,59099.0,0.32283059]
[1723667206051,0.0766091,59100.0,59099.0,0.32283059]
[1723667206439,0.009,59100.0,59099.0,0.32283059]
[1723667206933,0.015,59100.0,59099.0,0.32283059]
[1723667208542,0.015,59100.0,59099.0,0.33288879]
[1723667209540,0.015,59100.0,59099.0,0.2346432]
[1723667209746,0.015,59100.0,59099.0,0.33288879]
[1723667210639,0.015,59100.0,59099.0,0.2346432]
[1723667210847,0.015,59100.0,59099.0,0.33288829]
[1723667211556,0.015,59100.0,59099.0,0.2346432]
[1723667211742,0.015,59100.0,59099.0,0.33288829]
[1723667212339,0.015,59100.0,59099.0,0.2346432]
[1723667212538,0.015,59100.0,59099.0,0.3328883]
[1723667213646,0.015,59100.0,59099.0,0.2346432]
[1723667213849,0.015,59100.0,59099.0,0.33288826]
[1723667214647,0.015,59100.0,59099.0,1.32507326]
[1723667214955,0.015,59100.0,59099.0,1.32506455]
[1723667215144,0.015,59100.0,59099.0,1.73554256]
[1723667215543,0.015,59100.0,59099.0,1.82012756]
[1723667215853,0.015,59100.0,59099.0,1.55698758]
[1723667216052,0.015,59100.0,59099.0,1.82010299]
[1723667216358,0.00025379,59105.0,59104.0,0.169156]
[1723667216538,0.00025379,59105.0,59104.0,0.91508422]
[1723667216742,0.00025379,59105.0,59104.0,1.47302245]
[1723667216953,0.00025379,59105.0,59104.0,0.91508422]
[1723667218050,0.00125379,59105.0,59104.0,0.91508422]
[1723667219545,0.00225379,59105.0,59104.0,0.92508422]
[1723667220353,0.00225379,59105.0,59104.0,0.92508413]
[1723667222753,0.00225379,59105.0,59104.0,0.826856]
[1723667222955,0.00225379,59105.0,59104.0,0.92508437]
[1723667223158,0.00225379,59105.0,59104.0,0.72360637]
[1723667223347,0.00225379,59105.0,59104.0,0.84050637]
[1723667224773,1e-08,59105.0,59104.0,1.00966237]
[1723667225053,0.1748,59118.0,59117.0,0.084559]
[1723667225356,0.42819164,59118.0,59117.0,0.66048737]
[1723667226355,0.42819164,59118.0,59117.0,0.66047158]
[1723667226757,0.43119164,59118.0,59117.0,0.66047158]
[1723667227260,0.43219164,59118.0,59117.0,0.66047158]
[1723667228061,0.43219164,59118.0,59117.0,0.29967158]
[1723667228462,0.43219164,59118.0,59117.0,0.66047158]
[1723667228656,0.43219164,59118.0,59117.0,0.54757158]
[1723667228962,0.43019164,59118.0,59117.0,0.455359]
[1723667229155,0.54709164,59118.0,59117.0,0.455359]
[1723667229651,0.63164964,59118.0,59117.0,0.3708]
[1723667231755,0.43019164,59118.0,59117.0,0.46901779]
[1723667231961,0.43019164,59118.0,59117.0,0.55357679]
[1723667232463,0.43019164,59118.0,59117.0,0.455359]
[1723667232655,0.43019164,59118.0,59117.0,0.5535765]
[1723667233363,0.43019164,59118.0,59117.0,0.1927765]
[1723667236068,0.43019164,59118.0,59117.0,0.094559]
[1723667236466,0.43019164,59118.0,59117.0,0.1927765]
[1723667237062,0.43019164,59118.0,59117.0,0.094559]
[1723667237960,0.43019164,59118.0,59117.0,0.1927765]
[1723667241571,0.49765391,59118.0,59117.0,0.1927765]
[1723667242473,0.43019164,59118.0,59117.0,0.1927765]
[1723667242870,0.49767512,59118.0,59117.0,0.1927765]
[1723667243271,0.43019164,59118.0,59117.0,0.1927765]
[1723667248180,0.43019164,59118.0,59117.0,0.19277651]
[1723667248376,0.43019164,59118.0,59117.0,0.094559]
[1723667248568,0.43019164,59118.0,59117.0,0.1927765]
[1723667249483,0.51471765,59118.0,59117.0,0.1927765]
[1723667250791,0.43019164,59118.0,59117.0,0.1927765]
[1723667251497,0.45759912,59118.0,59117.0,0.1927765]
[1723667251691,0.45759875,59118.0,59117.0,0.094559]
[1723667251996,0.43019164,59118.0,59117.0,0.19277857]
[1723667252183,0.45759918,59118.0,59117.0,0.19277857]
[1723667252385,0.51474964,59118.0,59117.0,0.19277857]
[1723667252582,0.51474964,59118.0,59117.0,0.24312362]
[1723667252783,0.51474964,59118.0,59117.0,0.19277857]
[1723667253995,0.54215788,59118.0,59117.0,0.19277857]
[1723667254200,0.54215788,59118.0,59117.0,0.24312362]
[1723667254589,0.51474964,59118.0,59117.0,0.24312362]
[1723667254788,0.54215718,59118.0,59117.0,0.19277857]
[1723667254986,0.54215727,59118.0,59117.0,0.19277857]
[1723667255188,0.51474964,59118.0,59117.0,0.24312362]
[1723667255386,0.51474964,59118.0,59117.0,0.24312379]
[1723667255387,0.54215744,59118.0,59117.0,0.24312379]
[1723667255893,0.51474964,59118.0,59117.0,0.24312379]
[1723667256088,1.09751586,59118.0,59117.0,0.10821974]
[1723667256307,1.09751586,59118.0,59106.0,0.3608]
[1723667256308,0.084569,59110.0,59109.0,0.05039721]
[1723667256613,0.5722615,59110.0,59104.0,0.05041089]
[1723667256894,0.5722615,59110.0,59096.0,0.05044073]
[1723667256895,0.084588,59097.0,59096.0,0.05044073]
[1723667257087,0.1169,59097.0,59094.0,0.084592]
[1723667257295,0.06754983,59095.0,59094.0,0.254592]
[1723667257596,0.5632171,59099.0,59095.0,0.08459]
[1723667257900,0.3608,59099.0,59098.0,0.201487]
[1723667258099,0.3608,59099.0,59098.0,0.371487]
[1723667258299,0.61355809,59099.0,59098.0,0.371487]
[1723667259105,0.61355809,59099.0,59098.0,0.084587]
[1723667259396,0.61455809,59099.0,59091.0,0.18731942]
[1723667259600,0.61455809,59099.0,59093.0,0.201493]
[1723667259601,0.084592,59095.0,59093.0,0.201493]
[1723667259800,0.084592,59095.0,59093.0,0.2769]
[1723667259992,0.25247869,59094.0,59093.0,0.361494]
[1723667260591,0.25548146,59097.0,59096.0,0.084589]
[1723667260803,0.25548146,59097.0,59096.0,0.201489]
[1723667261101,0.446385,59099.0,59096.0,0.201489]
[1723667261294,0.25268356,59097.0,59096.0,0.201489]
[1723667262294,0.33727056,59098.0,59096.0,0.201489]
[1723667262901,0.33827056,59098.0,59096.0,0.204489]
[1723667263799,0.33827056,59098.0,59096.0,0.364489]
[1723667265905,0.33927056,59098.0,59096.0,0.364489]
[1723667266514,0.45617056,59098.0,59096.0,0.364489]
[1723667266807,0.45617056,59098.0,59096.0,0.247589]
[1723667270405,0.45617056,59098.0,59096.0,0.163]
[1723667270406,0.084588,59097.0,59096.0,0.163]